fUST/lending_fUST_20251011
["ID","MTS","AMOUNT","RATE_DAILY","PERIOD"]
[390880601,1760185840865,-500.0,0.00026973,2]
[390880602,1760185840875,-500.0,0.00026973,2]
[390880603,1760185840885,-500.0,0.00026973,2]
[390880604,1760185840894,-748.75355055,0.00026988,2]
[390880605,1760185840903,-3284.68669928,0.00027016,2]
[390880606,1760185840913,-240.0,0.0002704,2]
[390880607,1760185840922,-501.60108235,0.00027134,2]
[390880608,1760185840932,-1507.55432842,0.00027134,2]
[390880609,1760185840941,-156.56469291,0.00027134,2]
[390880610,1760185840950,-1500.0,0.00027134,2]
[390880611,1760185840959,-500.0,0.00027149,5]
[390880612,1760185840969,-528.421977,0.00027149,2]
[390880613,1760185840979,-1000.0,0.00027271,2]
[390880614,1760185840988,-1000.0,0.00027271,2]
[390880615,1760185840998,-1000.0,0.00027271,2]
[390880616,1760185841007,-252821.1360729,0.00027284,2]
[390880617,1760185841082,-117178.8639271,0.00027284,2]
[390880618,1760185841091,-159.80556658,0.00027295,2]
[390880619,1760185841101,-277.0,0.000273,2]
[390880620,1760185841110,-1000.0,0.00027321,2]
[390880621,1760185841119,-500.0,0.00027321,2]
[390880622,1760185841128,-510.99151939,0.00027352,2]
[390880623,1760185841137,-500.0,0.00027384,9]
[390880624,1760185841146,-300.0,0.00027385,30]
[390880625,1760185841155,-300.0,0.00027385,30]
[390880626,1760185841164,-300.0,0.00027385,30]
[390880627,1760185841173,-300.0,0.00027385,30]
[390880628,1760185841182,-300.0,0.00027385,30]
[390880629,1760185841190,-300.0,0.00027385,30]
[390880630,1760185841199,-300.0,0.00027385,30]
[390880631,1760185841209,-300.0,0.00027385,30]
[390880632,1760185841218,-300.0,0.00027385,30]
[390880633,1760185841229,-300.0,0.00027385,30]
[390880634,1760185841238,-300.0,0.00027385,30]
[390880635,1760185841246,-300.0,0.00027385,30]
[390880636,1760185841256,-300.0,0.00027385,30]
[390880637,1760185841265,-300.0,0.00027385,30]
[390880638,1760185841274,-300.0,0.00027385,30]
[390880639,1760185841283,-1000.0,0.00027397,30]
[390880640,1760185841292,-917.91942652,0.000274,2]
[390880641,1760185841300,-501.37593705,0.00027521,5]
[390880642,1760185841309,-1000.0,0.00027521,5]
[390880643,1760185841318,-500.0,0.00027521,5]
[390880644,1760185841327,-156.86003574,0.00027521,5]
[390880645,1760185841335,-262.5,0.0002764,2]
[390880646,1760185841344,-1000.9986309,0.00027819,5]
[390880647,1760185841353,-1500.0,0.00027819,5]
[390880648,1760185841361,-500.0,0.00027819,5]
[390880649,1760185841370,-600.0,0.00027932,30]
[390880650,1760185841379,-10320.1734082,0.00028,5]
[390880651,1760185841388,-168.10077245,0.00028044,9]
[390880652,1760185841396,-917.91942652,0.0002815,2]
[390880653,1760185841405,-285.0,0.0002824,2]
[390880654,1760185841414,-2000.0,0.00028367,5]
[390880655,1760185841423,-60785.21317976,0.000285,7]
[390880656,1760185841432,-2609.37557469,0.000285,7]
[390880657,1760185841441,-980.23029695,0.0002876,2]
[390880658,1760185841450,-307.5,0.0002884,2]
[390880659,1760185841459,-917.91942652,0.000289,2]
[390880660,1760185841467,-3284.68669928,0.000289,2]
[390880661,1760185841478,-2500.0,0.00028915,5]
[390880662,1760185841486,-169.1166714,0.00028973,5]
[390880663,1760185841495,-500.0,0.00028973,5]
[390880664,1760185841504,-500.0,0.00028973,5]
[390880665,1760185841512,-500.0,0.00028973,5]
[390880666,1760185841521,-2201.74723435,0.0002899,2]
[390880667,1760185841530,-1016.76,0.00029,2]
[390880668,1760185841539,-13000.0,0.00029,7]
[390880669,1760185841548,-1698488.23811498,0.00029,120]
[390880670,1760185841557,-33823.99087506,0.00029,60]
[390880671,1760185841565,-194.7823746,0.00029,120]
[390880672,1760185841575,-2609.37557469,0.00029,120]
[390880673,1760185841584,-678.22100723,0.0002905,2]
[390880674,1760185841593,-1016.76,0.00029174,2]
[390880675,1760185841604,-162.8757457,0.00029342,30]
[390880676,1760185841616,-1176.3655114,0.00029342,30]
[390880677,1760185841626,-1016.76,0.00029348,2]
[390880678,1760185841636,-2609.37557469,0.000294,7]
[390880679,1760185841646,-2609.37557469,0.000294,30]
[390880680,1760185841655,-1366.80860757,0.00029414,2]
[390880681,1760185841664,-330.0,0.0002944,2]
[390880682,1760185841673,-3000.0,0.00029463,5]
[390880683,1760185841682,-300.0402692,0.0002947,20]
[390880684,1760185841691,-500.0,0.00029521,5]
[390880685,1760185841699,-1000.0,0.00029521,5]
[390880686,1760185841708,-2000.0,0.00029541,120]
[390880687,1760185841717,-2000.0,0.00029541,120]
[390880688,1760185841727,-1419.707,0.00029541,120]
[390880689,1760185841736,-12028.99345882,0.00029643,2]
[390880690,1760185841744,-980.0,0.00029644,2]
[390880691,1760185841754,-2159.0,0.00029644,2]
[390880692,1760185841763,-630.0,0.00029644,2]
[390880693,1760185841772,-415.126,0.00029644,2]
[390880694,1760185841781,-1199.46888598,0.00029786,2]
[390880695,1760185841789,-152.19818,0.000298,32]
[390880696,1760185841798,-154.809389,0.000298,32]
[390880697,1760185841807,-2609.37557469,0.000299,120]
[390880698,1760185841816,-500.0,0.00029971,9]
[390880699,1760185841825,-441.28148957,0.00029999,2]
[390880700,1760185841834,-500.0,0.00029999,2]
[390880701,1760185841842,-416.28934424,0.00029999,2]
[390880702,1760185841851,-179.95425,0.0003,2]
[390880703,1760185841860,-280.6,0.0003,2]
[390880704,1760185841868,-280.6,0.0003,2]
[390880705,1760185841877,-150.0,0.0003,10]
[390880706,1760185841886,-4196.0,0.00030005,2]
[390880707,1760185841895,-2603.29,0.00030022,30]
[390880708,1760185841904,-2831.77079166,0.00030026,3]
[390880709,1760185841913,-195.0,0.0003003,25]
[390880710,1760185841922,-159.80556658,0.00030032,2]
[390880711,1760185841932,-4027.54245452,0.00030032,2]
[390880712,1760185841941,-352.5,0.0003004,2]
[390880713,1760185841950,-214.66,0.00030061,2]
[390880714,1760185841960,-214.66,0.00030061,2]
[390880715,1760185841971,-214.66,0.00030061,2]
[390880716,1760185841980,-214.66,0.00030061,2]
[390880717,1760185841991,-214.66,0.00030061,2]
[390880718,1760185842001,-214.66,0.00030061,2]
[390880719,1760185842010,-214.66,0.00030061,2]
[390880720,1760185842021,-214.66,0.00030061,2]
[390880721,1760185842164,-214.66,0.00030061,2]
[390880722,1760185842174,-214.66,0.00030061,2]
[390880723,1760185842184,-1500.0,0.00030068,5]
[390880724,1760185842194,-500.0,0.00030071,9]
[390880725,1760185842205,-166.0,0.00030072,7]
[390880726,1760185842216,-172.0,0.00030072,7]
[390880727,1760185842227,-175.0,0.00030072,7]
[390880728,1760185842236,-175.0,0.00030072,7]
[390880729,1760185842246,-175.0,0.00030072,7]
[390880730,1760185842255,-175.09993288,0.00030072,7]
[390880731,1760185842265,-157.0,0.00030072,7]
[390880732,1760185842274,-157.0,0.00030072,7]
[390880733,1760185842283,-157.0,0.00030072,7]
[390880734,1760185842293,-157.0,0.00030072,7]
[390880735,1760185842302,-157.0,0.00030072,7]
[390880736,1760185842312,-329.0,0.00030072,7]
[390880737,1760185842321,-329.0,0.00030072,7]
[390880738,1760185842331,-329.0,0.00030072,7]
[390880739,1760185842340,-157.0,0.00030072,7]
[390880740,1760185842350,-160.05791752,0.00030072,7]
[390880741,1760185842360,-166.0,0.00030072,7]
[390880742,1760185842369,-166.0,0.00030072,7]
[390880744,1760185842379,-166.0,0.00030072,7]
[390880746,1760185842388,-172.0,0.00030072,7]
[390880748,1760185842398,-329.0,0.00030072,7]
[390880750,1760185842407,-329.0,0.00030072,7]
[390880752,1760185842417,-329.0,0.00030072,7]
[390880754,1760185842426,-329.0,0.00030072,7]
[390880756,1760185842437,-329.0,0.00030072,7]
[390880757,1760185842447,-329.0,0.00030072,7]
[390880758,1760185842456,-329.0,0.00030072,7]
[390880759,1760185842466,-329.0,0.00030072,7]
[390880760,1760185842476,-329.0,0.00030072,7]
[390880761,1760185842486,-329.0,0.00030072,7]
[390880762,1760185842495,-329.0,0.00030072,7]
[390880763,1760185842504,-329.0,0.00030072,7]
[390880764,1760185842513,-329.0,0.00030072,7]
[390880765,1760185842523,-329.0,0.00030072,7]
[390880766,1760185842533,-329.0,0.00030072,7]
[390880767,1760185842544,-329.0,0.00030072,7]
[390880768,1760185842554,-329.0,0.00030072,7]
[390880769,1760185842563,-329.0,0.00030072,7]
[390880770,1760185842573,-329.0,0.00030072,7]
[390880771,1760185842583,-329.0,0.00030072,7]
[390880773,1760185842593,-329.0,0.00030072,7]
[390880775,1760185842603,-329.0,0.00030072,7]
[390880777,1760185842612,-329.0,0.00030072,7]
[390880779,1760185842621,-329.0,0.00030072,7]
[390880781,1760185842631,-329.0,0.00030072,7]
[390880783,1760185842641,-329.0,0.00030072,7]
[390880785,1760185842650,-329.0,0.00030072,7]
[390880787,1760185842660,-329.0,0.00030072,7]
[390880789,1760185842669,-329.0,0.00030072,7]
[390880792,1760185842681,-329.0,0.00030072,7]
[390880794,1760185842691,-329.0,0.00030072,7]
[390880795,1760185842700,-329.0,0.00030072,7]
[390880798,1760185842710,-329.0,0.00030072,7]
[390880800,1760185842719,-329.0,0.00030072,7]
[390880801,1760185842730,-329.0,0.00030072,7]
[390880804,1760185842741,-329.0,0.00030072,7]
[390880806,1760185842751,-329.0,0.00030072,7]
[390880808,1760185842761,-329.0,0.00030072,7]
[390880811,1760185842771,-329.0,0.00030072,7]
[390880814,1760185842780,-329.0,0.00030072,7]
[390880817,1760185842790,-329.0,0.00030072,7]
[390880819,1760185842800,-329.0,0.00030072,7]
[390880821,1760185842809,-329.0,0.00030072,7]
[390880824,1760185842818,-329.0,0.00030072,7]
[390880826,1760185842827,-329.0,0.00030072,7]
[390880828,1760185842837,-329.0,0.00030072,7]
[390880830,1760185842846,-329.0,0.00030072,7]
[390880832,1760185842855,-329.0,0.00030072,7]
[390880834,1760185842864,-329.0,0.00030072,7]
[390880836,1760185842874,-329.0,0.00030072,7]
[390880837,1760185842883,-329.0,0.00030072,7]
[390880838,1760185842892,-329.0,0.00030072,7]
[390880839,1760185842901,-329.0,0.00030072,7]
[390880840,1760185842910,-329.0,0.00030072,7]
[390880841,1760185842920,-329.0,0.00030072,7]
[390880842,1760185842930,-329.0,0.00030072,7]
[390880843,1760185842939,-329.0,0.00030072,7]
[390880844,1760185842948,-329.0,0.00030072,7]
[390880845,1760185842957,-329.0,0.00030072,7]
[390880846,1760185842966,-329.0,0.00030072,7]
[390880847,1760185842978,-329.0,0.00030072,7]
[390880848,1760185842988,-329.0,0.00030072,7]
[390880849,1760185842998,-334.41020079,0.00030072,7]
[390880850,1760185843008,-1000.0,0.00030072,14]
[390880851,1760185843017,-500.0,0.00030076,11]
[390880852,1760185843027,-1000.0,0.00030079,14]
[390880853,1760185843038,-500.0,0.00030081,11]
[390880854,1760185843047,-1000.0,0.00030087,14]
[390880855,1760185843057,-1000.0,0.00030095,14]
[390880856,1760185843066,-7429.3,0.000301,2]
[390880857,1760185843076,-1126.5674576,0.000301,2]
[390880863,1760185859333,169.4628755,0.00014448,2]
[390880880,1760185915491,4199.69671787,0.00024456,2]
[390880881,1760186069992,450.43324585,0.00023553,2]
[390880882,1760186116668,180.41716078,0.00013699,2]
[390880883,1760186116693,957.49766522,0.00013699,2]
[390880884,1760186116870,1137.914826,0.00020187,2]
[390880885,1760186607600,666.0,0.00023826,2]
[390880888,1760186664897,-151.974,0.00024466,2]
[390880889,1760186664920,-46.30835439,0.00024466,2]
[390880930,1760187032038,-103.69164561,0.00024466,2]
[390880932,1760187032047,-175.43148324,0.00024556,2]
[390880938,1760187032093,-1626.30150014,0.00024556,2]
[390880940,1760187032103,-500.0,0.00024707,9]
[390880942,1760187032112,-524.39843098,0.00024707,9]
[390880944,1760187032121,-500.0,0.00024707,9]
[390880946,1760187032130,-500.0,0.00024707,9]
[390880948,1760187032140,-158.91369407,0.00024779,2]
[390880950,1760187032149,-2831.77079166,0.000248,3]
[390880952,1760187032158,-300.0,0.00024814,2]
[390880954,1760187032167,-4049.8453134,0.00024815,2]
[390880956,1760187032176,-500.0,0.00024872,9]
[390880958,1760187032185,-500.0,0.00024872,9]
[390880960,1760187032194,-500.0,0.00024872,9]
[390880962,1760187032203,-500.0,0.00024872,9]
[390880964,1760187032213,-500.0,0.00024873,2]
[390880966,1760187032223,-500.0,0.00024873,2]
[390880967,1760187032232,-500.0,0.00024873,2]
[390880970,1760187032242,-35505.94866353,0.00024873,2]
[390881105,1760187038086,-279.15,0.00024879,9]
[390881107,1760187038098,-220.85,0.00024879,9]
[390881108,1760187038109,-152.8,0.00024879,9]
[390881109,1760187038119,-681.11205145,0.00024879,2]
[390881110,1760187038131,-281.00478041,0.00024879,2]
[390881111,1760187038141,-500.0,0.00024879,9]
[390881112,1760187038151,-1163.32,0.0002488,10]
[390881113,1760187038161,-500.0,0.0002488,9]
[390881115,1760187038171,-500.0,0.0002488,9]
[390881116,1760187038181,-500.0,0.0002488,9]
[390881118,1760187038191,-500.0,0.00024889,9]
[390881120,1760187038200,-495.75,0.00024889,9]
[390881122,1760187038210,-249.5146342,0.00024889,9]
[390881124,1760187038222,-250.4853658,0.00024889,9]
[390881126,1760187038234,-500.0,0.00024889,9]
[390881128,1760187038243,-500.0,0.00024889,9]
[390881131,1760187038253,-500.0,0.00024889,9]
[390881133,1760187038263,-500.0,0.00024889,9]
[390881135,1760187038273,-500.0,0.00024889,9]
[390881137,1760187038281,-500.0,0.00024889,9]
[390881139,1760187038289,-500.0,0.00024889,9]
[390881141,1760187038297,-500.0,0.00024889,9]
[390881142,1760187038306,-500.0,0.00024889,9]
[390881144,1760187038316,-500.0,0.00024889,9]
[390881146,1760187038326,-500.0,0.00024889,9]
[390881148,1760187038335,-233.04339138,0.00024889,9]
[390881150,1760187038345,-159.12963926,0.00024889,2]
[390881152,1760187038354,-247354.17075993,0.0002489,2]
[390881197,1760187043171,-969.43,0.0002488,10]
[390881198,1760187043180,-11044.56999,0.0002489,2]
[390881199,1760187043227,-12980.02404631,0.0002489,2]
[390881205,1760187149722,199.0,0.00021616,5]
[390881206,1760187151848,7039.59750878,0.00024,2]
[390881207,1760187151870,10000.01,0.00024,2]
[390881208,1760187151891,7960.39249122,0.00024,2]
[390881209,1760187152280,2039.61750878,0.0002415,2]
[390881210,1760187152302,10000.01,0.0002415,2]
[390881211,1760187152325,10000.01,0.0002415,2]
[390881212,1760187152349,2960.36249122,0.0002415,2]
[390881213,1760187152720,7039.64750878,0.000243,2]
[390881214,1760187152743,10000.01,0.000243,2]
[390881215,1760187152763,7960.34249122,0.000243,2]
[390881216,1760187153172,2039.66750878,0.0002445,2]
[390881217,1760187153194,10000.01,0.0002445,2]
[390881218,1760187153216,10000.01,0.0002445,2]
[390881219,1760187158246,-2960.31249122,0.0002445,2]
[390881220,1760187173149,4999.95,0.00024354,10]
[390881224,1760187211954,3000.0,0.00024,2]
[390881227,1760187333195,438.86852336,0.00023705,2]
[390881228,1760187339837,1000.0,0.00023771,2]
[390881233,1760187451958,272.64545565,0.00024456,2]
[390881253,1760187732997,288.54602099,0.00023532,2]
[390881254,1760187733030,955.93318539,0.00023532,2]
[390881255,1760187733236,1244.47920638,0.00023656,2]
[390881256,1760187733762,1244.47920638,0.00024103,2]
[390881257,1760187734100,1244.47920638,0.00024352,2]
[390881258,1760187735741,-156.75690385,0.00024474,2]
[390881262,1760188169509,317.053186,0.00023676,2]
[390881269,1760188232238,-150.0,0.00024598,2]
[390881270,1760188232248,-494.0,0.00024599,2]
[390881271,1760188232257,-300.0,0.00024599,2]
[390881272,1760188232266,-1175.4788544,0.00024599,2]
[390881293,1760188233101,1087.72230256,0.00024435,2]
[390881335,1760188253428,3905.86370691,0.00024456,2]
[390881336,1760188253451,1094.13629309,0.00024456,2]
[390881337,1760188320149,2236.07282,0.00023714,2]
[390881338,1760188386864,2928.7,0.00024456,2]
[390881339,1760188461766,2909.4078846,0.00023692,2]
[390881341,1760188756745,831.69300231,0.00013699,2]
[390881342,1760188756769,192.43034069,0.00013699,2]
[390881343,1760188756946,1024.123343,0.00020187,2]
[390881344,1760188769112,3250.01,0.00024456,2]
[390881347,1760188964154,5533.44631631,0.00024,2]
[390881348,1760188964176,10000.01,0.00024,2]
[390881349,1760188964198,9466.54368369,0.00024,2]
[390881350,1760188964588,533.46631631,0.0002415,2]
[390881351,1760188964610,10000.01,0.0002415,2]
[390881352,1760188964638,10000.01,0.0002415,2]
[390881353,1760188964660,4466.51368369,0.0002415,2]
[390881354,1760188965076,5533.49631631,0.000243,2]
[390881355,1760188965099,10000.01,0.000243,2]
[390881356,1760188965121,9466.49368369,0.000243,2]
[390881357,1760188965542,533.51631631,0.0002445,2]
[390881358,1760188965565,10000.01,0.0002445,2]
[390881359,1760188965588,10000.01,0.0002445,2]
[390881360,1760188966900,-4466.46368369,0.0002445,2]
[390881361,1760188967040,150.0,0.00019075,2]
[390881362,1760188967470,150.0,0.00020809,2]
[390881363,1760188967957,150.0,0.00022543,2]
[390881364,1760188975274,617.08263262,0.0002445,2]
[390881365,1760188975296,380.27588537,0.0002445,2]
[390881366,1760188983358,5000.0,0.0002445,2]
[390881367,1760188992610,4619.73411463,0.0002445,2]
[390881368,1760188992633,380.26588537,0.0002445,2]
[390881369,1760189008688,5000.0,0.00024456,2]
[390881370,1760189017362,5000.0,0.00024456,2]
[390881371,1760189033133,5000.0,0.00024469,2]
[390881372,1760189034127,151.44,0.00019116,2]
[390881373,1760189034766,302.88,0.00020853,2]
[390881374,1760189035172,454.32,0.00022591,2]
[390881375,1760189035612,605.76,0.00024329,2]
[390881376,1760189041248,3485.61,0.00024469,2]
[390881377,1760189041269,1514.39,0.00024469,2]
[390881378,1760189057377,5000.0,0.00024469,2]
[390881379,1760189065251,3485.62,0.00024469,2]
[390881380,1760189065273,1514.38,0.00024469,2]
[390881381,1760189081102,5000.0,0.00024469,2]
[390881382,1760189084317,-357.02762367,0.00024469,2]
[390881383,1760189089637,5000.0,0.00024499,2]
[390881384,1760189105374,4285.95475266,0.00024499,2]
[390881385,1760189106456,-714.04524734,0.00024499,2]
[390881386,1760189113521,444.49479968,0.00024499,2]
[390881387,1760189114913,302.51602579,0.00024377,12]
[390881388,1760189115834,172.61,0.00019115,2]
[390881389,1760189116341,345.23,0.00020853,2]
[390881390,1760189116764,517.84,0.0002259,2]
[390881391,1760189117226,690.45,0.00024328,2]
[390881392,1760189129445,5000.0,0.00024499,2]
[390881393,1760189137941,1098.77867985,0.00024499,2]
[390881394,1760189153552,3485.63,0.00024469,2]
[390881399,1760189196669,162.55,0.00019119,2]
[390881400,1760189197100,325.1,0.00020857,2]
[390881401,1760189197533,487.65,0.00022595,2]
[390881402,1760189197947,650.2,0.00024333,2]
[390881405,1760189275939,150.0,0.00019115,2]
[390881406,1760189276377,283.72,0.00020852,2]
[390881407,1760189276800,425.58,0.0002259,2]
[390881408,1760189277244,567.45,0.00024328,2]
[390881410,1760189309955,1947.76,0.00017,2]
[390881411,1760189309980,2024.83186087,0.00017,2]
[390881412,1760189312477,-1514.37,0.00024469,2]
[390881418,1760189324304,5000.0,0.00024469,2]
[390881419,1760189324696,-3901.22132015,0.00024499,2]
[390881420,1760189332232,2197.5673597,0.00024499,2]
[390881421,1760189332259,2802.4326403,0.00024499,2]
[390881422,1760189334690,652.8211548,0.00024377,12]
[390881423,1760189336636,-150.0,0.00024499,2]
[390881424,1760189336665,-205.10522659,0.00024499,2]
[390881425,1760189336692,-159.35963033,0.00024505,2]
[390881426,1760189347876,5000.0,0.00024505,2]
[390881427,1760189355893,5000.0,0.00024356,2]
[390881428,1760189356797,164.72,0.00019108,2]
[390881429,1760189357343,329.43,0.00020845,2]
[390881430,1760189357680,494.15,0.00022582,2]
[390881431,1760189358123,658.87,0.00024319,2]
[390881432,1760189372611,3352.84,0.00024356,2]
[390881433,1760189372634,1647.16,0.00024356,2]
[390881434,1760189396018,5000.0,0.00024489,2]
[390881435,1760189418826,5000.0,0.00024489,2]
[390881501,1760189437856,0.01,0.00019106,2]
[390881504,1760189437880,153.29,0.00019106,2]
[390881516,1760189438283,306.6,0.00020843,2]
[390881550,1760189438690,459.89,0.0002258,2]
[390881551,1760189439174,613.19,0.00024317,2]
[390881564,1760189441871,5000.0,0.00024489,2]
[390881622,1760189447305,-463.15797556,0.00024489,2]
[390881623,1760189447314,-159.35963032,0.00024557,2]
[390881624,1760189447323,-1816.95211007,0.00024589,2]
[390881625,1760189447332,-1200.0,0.00024599,2]
[390881626,1760189447341,-300.0,0.00024599,2]
[390881627,1760189447350,-300.0,0.00024599,2]
[390881628,1760189447360,-300.0,0.00024599,2]
[390881629,1760189447368,-1200.0,0.00024599,2]
[390881630,1760189447377,-132.29166606,0.00024599,2]
[390881631,1760189447388,-167.70833394,0.00024599,2]
[390881632,1760189447397,-300.0,0.00024599,2]
[390881633,1760189447406,-25000.0,0.000246,2]
[390881634,1760189447415,-38523.72672185,0.00024657,2]
[390881635,1760189464583,5000.0,0.00024356,2]
[390881636,1760189487465,5000.0,0.00024356,2]
[390881637,1760189510892,0.01,0.00024356,2]
[390881638,1760189510919,1051.69393765,0.00024356,2]
[390881639,1760189527204,150.0,0.00019105,2]
[390881640,1760189527685,267.57,0.00020842,2]
[390881641,1760189528117,401.36,0.00022579,2]
[390881642,1760189528693,535.15,0.00024316,2]
[390881647,1760189603927,2840.0276302,0.00023839,2]
[390881648,1760189608079,150.0,0.00019315,2]
[390881649,1760189608502,233.11,0.00021071,2]
[390881650,1760189608975,349.66,0.00022827,2]
[390881651,1760189650649,5892.0623698,0.00024,30]
[390881652,1760189650672,4107.9376302,0.00024,30]
[390881653,1760189690121,150.0,0.00019323,2]
[390881654,1760189690540,238.36,0.00021079,2]
[390881655,1760189690968,357.54,0.00022836,2]
[390881656,1760189694698,666.0,0.00023599,2]
[390881657,1760189716146,160.0,0.00024356,2]
[390881659,1760189778842,150.0,0.00019302,2]
[390881660,1760189779278,219.38,0.00021057,2]
[390881661,1760189779697,329.06,0.00022812,2]
[390881662,1760189785027,30029.36810529,0.00030138,60]
[390881663,1760189866000,150.0,0.00019309,2]
[390881664,1760189866547,201.6,0.00021064,2]
[390881665,1760189866962,302.4,0.00022819,2]
[390881666,1760189883177,214.73,0.00015225,2]
[390881667,1760189883627,214.73,0.00015225,5]
[390881668,1760189936173,9866.5426808,0.00030153,60]
[390881669,1760189945609,150.0,0.00019052,2]
[390881670,1760189946058,184.95,0.00020784,2]
[390881671,1760189946570,277.42,0.00022516,2]
[390881672,1760189951460,369.9,0.00024248,2]
[390881673,1760189958644,5000.0,0.00024356,2]
[390881674,1760190004975,189.715657,0.00024344,5]
[390881675,1760190028862,150.0,0.00019049,2]
[390881676,1760190029292,159.95,0.00020781,2]
[390881677,1760190030216,239.92,0.00022512,2]
[390881678,1760190030707,319.89,0.00024244,2]
[390881680,1760190099971,5183.3,0.00024356,2]
[390881681,1760190109759,150.0,0.00019054,2]
[390881682,1760190110217,150.0,0.00020786,2]
[390881683,1760190110693,206.71,0.00022518,2]
[390881684,1760190111115,275.61,0.0002425,2]
[390881685,1760190164984,1000.0,0.00023554,2]
[390881686,1760190181932,-1211.30140672,0.00024457,2]
[390881687,1760190181961,-2000.0,0.00024512,30]
[390881688,1760190181989,-1577.40718656,0.00024512,30]
[390881689,1760190185816,-422.59281344,0.00024512,30]
[390881690,1760190185848,-2000.0,0.00024512,30]
[390881691,1760190185883,-1790.52,0.00024512,30]
[390881692,1760190186117,-206.0,0.00024546,2]
[390881693,1760190189835,-150.0,0.00019056,2]
[390881694,1760190189864,-150.0,0.00020788,2]
[390881695,1760190189896,-176.84,0.00022521,2]
[390881696,1760190189925,-235.79,0.00024253,2]
[390881697,1760190189953,-1200.0,0.00024546,2]
[390881698,1760190189982,-1066.26,0.00024547,10]
[390881699,1760190190012,-888.55,0.00024547,10]
[390881700,1760190190041,-740.46,0.00024547,10]
[390881701,1760190193722,5000.0,0.0002431,10]
[390881704,1760190201866,5000.0,0.00024356,2]
[390881709,1760190263865,0.01,0.00019077,2]
[390881710,1760190263894,149.99,0.00019077,2]
[390881711,1760190264288,150.0,0.00020811,2]
[390881712,1760190264741,150.0,0.00022546,2]
[390881713,1760190265138,199.51,0.0002428,2]
[390881715,1760190298650,826.73,0.00027397,120]
[390881716,1760190339810,150.0,0.00019083,2]
[390881717,1760190340415,150.0,0.00020818,2]
[390881718,1760190340906,150.0,0.00022553,2]
[390881719,1760190341336,166.44,0.00024288,2]
[390881730,1760190415865,150.0,0.00019065,2]
[390881731,1760190416370,150.0,0.00020798,2]
[390881732,1760190416839,150.0,0.00022531,2]
[390881733,1760190417345,150.0,0.00024265,2]
[390881738,1760190463377,154.809388,0.00024206,9]
[390881739,1760190463725,154.809388,0.00024015,9]
[390881740,1760190464078,154.809388,0.00023825,9]
[390881741,1760190490317,150.0,0.00019057,2]
[390881742,1760190490770,150.0,0.00020789,2]
[390881743,1760190491192,150.0,0.00022522,2]
[390881744,1760190491626,150.0,0.00024254,2]
[390881745,1760190505969,-151.974,0.00024434,2]
[390881746,1760190508577,-278.36130879,0.00024434,2]
[390881747,1760190512044,-241.40581714,0.00024434,2]
[390881748,1760190514389,-174.76358483,0.00024434,2]
[390881749,1760190516629,-159.10424614,0.00024434,2]
[390881750,1760190535356,-191.10430602,0.00024434,2]